[Event "Titled Tuesday Blitz May 03 Early 2022"]
[White "Plotnikov, Pavel"]
[Black "Beerdsen, Thomas"]
[WhiteFideId "4170342"]
[BlackFideId "1030108"]
[WhiteElo "2522"]
[BlackElo "2746"]
[Result "1-0"]
[Round "05"]
[TimeControl "180+1"]
[Date "2022.05.03"]
[WhiteClock "0:00:16"]
[BlackClock "0:00:50"]

1. e4 {[%clk 0:03:00]}  e5 {[%clk 0:02:57]} 2. Nf3 {[%clk 0:02:59]}  Nc6 {[%clk 0:02:58]} 3. Bc4 {[%clk 0:02:58]}  Nf6 {[%clk 0:02:58]} 4. d3 {[%clk 0:02:58]}  h6 {[%clk 0:02:57]} 5. c3 {[%clk 0:02:56]}  g5 {[%clk 0:02:56]} 6. O-O {[%clk 0:02:45]}  g4 {[%clk 0:02:55]} 7. Ne1 {[%clk 0:02:38]}  a6 {[%clk 0:02:39]} 8. f4 {[%clk 0:02:37]}  Bc5+ {[%clk 0:02:35]} 9. Kh1 {[%clk 0:02:37]}  d6 {[%clk 0:02:32]} 10. Nc2 {[%clk 0:02:27]}  Nh5 {[%clk 0:02:24]} 11. d4 {[%clk 0:02:17]}  exd4 {[%clk 0:02:23]} 12. cxd4 {[%clk 0:02:17]}  Ba7 {[%clk 0:02:24]} 13. Be3 {[%clk 0:02:12]}  Qh4 {[%clk 0:02:19]} 14. Kg1 {[%clk 0:02:12]}  Rg8 {[%clk 0:02:12]} 15. Qd2 {[%clk 0:02:06]}  g3 {[%clk 0:02:11]} 16. h3 {[%clk 0:02:06]}  Bxh3 {[%clk 0:02:11]} 17. gxh3 {[%clk 0:02:06]}  g2 {[%clk 0:02:08]} 18. Rf2 {[%clk 0:01:57]}  Qxh3 {[%clk 0:01:52]} 19. Rxg2 {[%clk 0:01:57]}  O-O-O {[%clk 0:01:53]} 20. Bxf7 {[%clk 0:01:52]}  Nxf4 {[%clk 0:01:28]} 21. Bxg8 {[%clk 0:00:56]}  Nxd4 {[%clk 0:01:11]} 22. Nxd4 {[%clk 0:00:48]}  Nxg2 {[%clk 0:01:10]} 23. Be6+ {[%clk 0:00:48]}  Qxe6 {[%clk 0:01:10]} 24. Nxe6 {[%clk 0:00:47]}  Bxe3+ {[%clk 0:01:10]} 25. Qxe3 {[%clk 0:00:46]}  Nxe3 {[%clk 0:01:11]} 26. Nxd8 {[%clk 0:00:46]}  Nc2 {[%clk 0:01:12]} 27. Nf7 {[%clk 0:00:46]}  Nxa1 {[%clk 0:01:11]} 28. Na3 {[%clk 0:00:43]}  h5 {[%clk 0:01:12]} 29. Kf2 {[%clk 0:00:35]}  b5 {[%clk 0:01:11]} 30. b4 {[%clk 0:00:33]}  Kd7 {[%clk 0:01:09]} 31. e5 {[%clk 0:00:31]}  dxe5 {[%clk 0:01:05]} 32. Nxe5+ {[%clk 0:00:32]}  Kd6 {[%clk 0:01:05]} 33. Nd3 {[%clk 0:00:32]}  Kd5 {[%clk 0:01:04]} 34. Ke3 {[%clk 0:00:27]}  h4 {[%clk 0:01:04]} 35. Kd2 {[%clk 0:00:27]}  Ke4 {[%clk 0:00:59]} 36. Kc3 {[%clk 0:00:14]}  Ke3 {[%clk 0:00:56]} 37. Ne5 {[%clk 0:00:13]}  Kf4 {[%clk 0:00:52]} 38. Ng6+ {[%clk 0:00:13]}  Kg3 {[%clk 0:00:53]} 39. Nxh4 {[%clk 0:00:14]}  Kxh4 {[%clk 0:00:54]} 40. Kb2 {[%clk 0:00:14]}  Kg3 {[%clk 0:00:52]} 41. Kxa1 {[%clk 0:00:14]}  Kf3 {[%clk 0:00:52]} 42. Kb2 {[%clk 0:00:15]}  Ke2 {[%clk 0:00:50]} 43. Kc3 {[%clk 0:00:15]}  Kd1 {[%clk 0:00:51]} 44. Nc2 {[%clk 0:00:16]}  Kc1 {[%clk 0:00:51]} 45. Nd4 {[%clk 0:00:15]}  Kb1 {[%clk 0:00:51]} 46. Kb3 {[%clk 0:00:16]}  c5 {[%clk 0:00:50]} 47. bxc5 {[%clk 0:00:16]} 1-0


[Site "https://www.chess.com"]

[Event "Titled Tuesday Blitz May 03 Early 2022"]
[White "Preotu, Razvan"]
[Black "Levitskiy, Andrey"]
[WhiteFideId "2613280"]
[BlackFideId "14132885"]
[WhiteElo "2407"]
[BlackElo "2301"]
[Result "1-0"]
[Round "05"]
[TimeControl "180+1"]
[Date "2022.05.03"]
[WhiteClock "0:00:19"]
[BlackClock "0:00:03"]

1. e4 {[%clk 0:03:00]}  e6 {[%clk 0:03:00]} 2. d4 {[%clk 0:03:00]}  d5 {[%clk 0:03:00]} 3. Nc3 {[%clk 0:03:01]}  Bb4 {[%clk 0:03:00]} 4. e5 {[%clk 0:03:01]}  c5 {[%clk 0:03:00]} 5. a3 {[%clk 0:03:01]}  Bxc3+ {[%clk 0:03:01]} 6. bxc3 {[%clk 0:03:02]}  Qa5 {[%clk 0:03:01]} 7. Bd2 {[%clk 0:03:02]}  Qa4 {[%clk 0:03:01]} 8. Qg4 {[%clk 0:03:01]}  Kf8 {[%clk 0:03:02]} 9. h4 {[%clk 0:03:00]}  Ne7 {[%clk 0:02:58]} 10. h5 {[%clk 0:03:00]}  h6 {[%clk 0:02:58]} 11. Qd1 {[%clk 0:02:56]}  Nbc6 {[%clk 0:02:50]} 12. Nf3 {[%clk 0:02:55]}  cxd4 {[%clk 0:02:32]} 13. Rh4 {[%clk 0:02:34]}  b6 {[%clk 0:02:15]} 14. Nxd4 {[%clk 0:01:48]}  Nxd4 {[%clk 0:02:04]} 15. cxd4 {[%clk 0:01:40]}  Ba6 {[%clk 0:01:55]} 16. Bb4 {[%clk 0:01:40]}  Re8 {[%clk 0:01:14]} 17. Qf3 {[%clk 0:01:13]}  Kg8 {[%clk 0:00:47]} 18. Bxe7 {[%clk 0:01:10]}  Rxe7 {[%clk 0:00:39]} 19. Rg4 {[%clk 0:01:10]}  Kf8 {[%clk 0:00:15]} 20. Qc3 {[%clk 0:00:50]}  Bxf1 {[%clk 0:00:07]} 21. Kxf1 {[%clk 0:00:48]}  Qc4+ {[%clk 0:00:05]} 22. Qxc4 {[%clk 0:00:48]}  dxc4 {[%clk 0:00:05]} 23. a4 {[%clk 0:00:47]}  Rc7 {[%clk 0:00:03]} 24. Ke2 {[%clk 0:00:42]}  Rg8 {[%clk 0:00:03]} 25. Kd2 {[%clk 0:00:42]}  Ke7 {[%clk 0:00:04]} 26. Kc3 {[%clk 0:00:42]}  g6 {[%clk 0:00:04]} 27. Rh1 {[%clk 0:00:39]}  g5 {[%clk 0:00:04]} 28. f4 {[%clk 0:00:39]}  f5 {[%clk 0:00:03]} 29. exf6+ {[%clk 0:00:33]}  Kxf6 {[%clk 0:00:04]} 30. fxg5+ {[%clk 0:00:33]}  Kf5 {[%clk 0:00:02]} 31. Rg3 {[%clk 0:00:32]}  Rxg5 {[%clk 0:00:02]} 32. Rf1+ {[%clk 0:00:31]}  Ke4 {[%clk 0:00:03]} 33. Rxg5 {[%clk 0:00:28]}  hxg5 {[%clk 0:00:04]} 34. Rf6 {[%clk 0:00:26]}  Re7 {[%clk 0:00:04]} 35. g4 {[%clk 0:00:22]}  Kd5 {[%clk 0:00:04]} 36. Rg6 {[%clk 0:00:21]}  Ke4 {[%clk 0:00:03]} 37. Rxg5 {[%clk 0:00:22]}  Rf7 {[%clk 0:00:04]} 38. h6 {[%clk 0:00:19]}  Rf3+ {[%clk 0:00:03]} 39. Kxc4 {[%clk 0:00:19]}  Rh3 {[%clk 0:00:03]} 40. Rh5 {[%clk 0:00:19]} 1-0


[Site "https://www.chess.com"]

[Event "Titled Tuesday Blitz May 03 Early 2022"]
[White "Priyanka, K"]
[Black "Miszler, Levente"]
[WhiteFideId "5082986"]
[BlackFideId "763276"]
[WhiteElo "1905"]
[BlackElo "1966"]
[Result "0-1"]
[Round "05"]
[TimeControl "180+1"]
[Date "2022.05.03"]
[WhiteClock "0:00:02"]
[BlackClock "0:00:42"]

1. e4 {[%clk 0:03:00]}  e6 {[%clk 0:02:59]} 2. d4 {[%clk 0:03:00]}  d5 {[%clk 0:02:59]} 3. Nc3 {[%clk 0:03:00]}  Nf6 {[%clk 0:02:58]} 4. Bg5 {[%clk 0:03:00]}  Be7 {[%clk 0:02:58]} 5. e5 {[%clk 0:03:00]}  Nfd7 {[%clk 0:02:58]} 6. Bxe7 {[%clk 0:03:00]}  Qxe7 {[%clk 0:02:59]} 7. f4 {[%clk 0:03:00]}  a6 {[%clk 0:02:59]} 8. Nf3 {[%clk 0:03:00]}  c5 {[%clk 0:03:00]} 9. dxc5 {[%clk 0:03:00]}  Nc6 {[%clk 0:02:57]} 10. Qd2 {[%clk 0:03:01]}  Nxc5 {[%clk 0:02:53]} 11. Bd3 {[%clk 0:03:00]}  f6 {[%clk 0:02:53]} 12. exf6 {[%clk 0:02:55]}  Qxf6 {[%clk 0:02:54]} 13. O-O {[%clk 0:02:54]}  O-O {[%clk 0:02:52]} 14. g3 {[%clk 0:02:51]}  Bd7 {[%clk 0:02:44]} 15. Rae1 {[%clk 0:02:49]}  Rac8 {[%clk 0:02:43]} 16. Ne5 {[%clk 0:02:45]}  Ne7 {[%clk 0:02:20]} 17. Ne2 {[%clk 0:02:26]}  Nc6 {[%clk 0:02:09]} 18. Nc1 {[%clk 0:01:54]}  Rfd8 {[%clk 0:01:57]} 19. c3 {[%clk 0:01:51]}  Be8 {[%clk 0:01:44]} 20. Bb1 {[%clk 0:01:50]}  Rc7 {[%clk 0:01:29]} 21. Qc2 {[%clk 0:01:42]}  g6 {[%clk 0:01:28]} 22. Qf2 {[%clk 0:01:31]}  Ne7 {[%clk 0:01:23]} 23. b4 {[%clk 0:01:21]}  Na4 {[%clk 0:01:19]} 24. Ncd3 {[%clk 0:01:07]}  Nxc3 {[%clk 0:01:16]} 25. Ng4 {[%clk 0:00:59]}  Qg7 {[%clk 0:01:06]} 26. Rxe6 {[%clk 0:00:52]}  Ne4 {[%clk 0:01:06]} 27. Qe3 {[%clk 0:00:41]}  Bd7 {[%clk 0:01:04]} 28. Nc5 {[%clk 0:00:35]}  Rxc5 {[%clk 0:01:00]} 29. Rxe4 {[%clk 0:00:10]}  dxe4 {[%clk 0:00:57]} 30. bxc5 {[%clk 0:00:04]}  Bxg4 {[%clk 0:00:56]} 31. Qxe4 {[%clk 0:00:03]}  Bf5 {[%clk 0:00:54]} 32. Qxb7 {[%clk 0:00:03]}  Bxb1 {[%clk 0:00:50]} 33. Rxb1 {[%clk 0:00:02]}  Qd4+ {[%clk 0:00:50]} 34. Kh1 {[%clk 0:00:02]}  Qd5+ {[%clk 0:00:50]} 35. Qxd5+ {[%clk 0:00:02]}  Rxd5 {[%clk 0:00:51]} 36. Rc1 {[%clk 0:00:02]}  Kf7 {[%clk 0:00:49]} 37. Rc2 {[%clk 0:00:02]}  Ke6 {[%clk 0:00:47]} 38. Kg2 {[%clk 0:00:03]}  Kd7 {[%clk 0:00:47]} 39. Kf3 {[%clk 0:00:04]}  Kc6 {[%clk 0:00:47]} 40. Ke4 {[%clk 0:00:04]}  Nf5 {[%clk 0:00:45]} 41. g4 {[%clk 0:00:02]}  Ne7 {[%clk 0:00:42]} 0-1


[Site "https://www.chess.com"]

[Event "Titled Tuesday Blitz May 03 Early 2022"]
[White "Prraneeth Vuppala"]
[Black "Kovalenko, Igor"]
[WhiteFideId "46622373"]
[BlackFideId "14117908"]
[WhiteElo "2548"]
[BlackElo "2933"]
[Result "1-0"]
[Round "05"]
[TimeControl "180+1"]
[Date "2022.05.03"]
[WhiteClock "0:00:02"]
[BlackClock "0:00:14"]

1. e4 {[%clk 0:03:00]}  e6 {[%clk 0:02:11]} 2. d4 {[%clk 0:02:58]}  d5 {[%clk 0:02:10]} 3. Nc3 {[%clk 0:02:56]}  Bb4 {[%clk 0:02:10]} 4. e5 {[%clk 0:02:55]}  c5 {[%clk 0:02:10]} 5. a3 {[%clk 0:02:54]}  Bxc3+ {[%clk 0:02:10]} 6. bxc3 {[%clk 0:02:54]}  Ne7 {[%clk 0:02:11]} 7. Qg4 {[%clk 0:02:38]}  Nf5 {[%clk 0:02:01]} 8. Bd3 {[%clk 0:02:26]}  h5 {[%clk 0:01:59]} 9. Qf4 {[%clk 0:02:09]}  c4 {[%clk 0:01:54]} 10. Bxf5 {[%clk 0:02:09]}  exf5 {[%clk 0:01:55]} 11. Nf3 {[%clk 0:02:02]}  Be6 {[%clk 0:01:55]} 12. a4 {[%clk 0:02:01]}  Qa5 {[%clk 0:01:54]} 13. Qd2 {[%clk 0:01:42]}  Nc6 {[%clk 0:01:53]} 14. O-O {[%clk 0:01:36]}  O-O-O {[%clk 0:01:52]} 15. Ba3 {[%clk 0:01:34]}  h4 {[%clk 0:01:52]} 16. h3 {[%clk 0:01:32]}  Rh5 {[%clk 0:01:51]} 17. Bb4 {[%clk 0:01:22]}  Qc7 {[%clk 0:01:50]} 18. Bd6 {[%clk 0:01:21]}  Qd7 {[%clk 0:01:49]} 19. a5 {[%clk 0:01:09]}  Rg8 {[%clk 0:01:42]} 20. Ng5 {[%clk 0:00:56]}  Qd8 {[%clk 0:01:33]} 21. f4 {[%clk 0:00:54]}  Nxa5 {[%clk 0:01:29]} 22. Rfb1 {[%clk 0:00:47]}  Nc6 {[%clk 0:01:28]} 23. Qd1 {[%clk 0:00:32]}  g6 {[%clk 0:01:27]} 24. Qc1 {[%clk 0:00:30]}  b6 {[%clk 0:01:19]} 25. Qa3 {[%clk 0:00:25]}  Kd7 {[%clk 0:01:18]} 26. Qa6 {[%clk 0:00:19]}  Qc8 {[%clk 0:01:17]} 27. Qb5 {[%clk 0:00:19]}  Qb7 {[%clk 0:01:15]} 28. Ra6 {[%clk 0:00:18]}  Rc8 {[%clk 0:01:08]} 29. Rba1 {[%clk 0:00:18]}  Kd8 {[%clk 0:01:07]} 30. Bc5 {[%clk 0:00:17]}  Rb8 {[%clk 0:00:52]} 31. Bd6 {[%clk 0:00:11]}  Rc8 {[%clk 0:00:48]} 32. Bc5 {[%clk 0:00:11]}  Qd7 {[%clk 0:00:42]} 33. Nxe6+ {[%clk 0:00:06]}  fxe6 {[%clk 0:00:40]} 34. Rxa7 {[%clk 0:00:05]}  Nxa7 {[%clk 0:00:40]} 35. Qxb6+ {[%clk 0:00:05]}  Ke8 {[%clk 0:00:36]} 36. Rxa7 {[%clk 0:00:04]}  Rc6 {[%clk 0:00:28]} 37. Qb8+ {[%clk 0:00:03]}  Rc8 {[%clk 0:00:26]} 38. Qb6 {[%clk 0:00:01]}  Rc6 {[%clk 0:00:25]} 39. Qb5 {[%clk 0:00:02]}  Qc8 {[%clk 0:00:15]} 40. Qa4 {[%clk 0:00:01]}  g5 {[%clk 0:00:13]} 41. Ra8 {[%clk 0:00:01]}  Kf7 {[%clk 0:00:13]} 42. Rxc8 {[%clk 0:00:01]}  Rxc8 {[%clk 0:00:14]} 43. Qd7+ {[%clk 0:00:02]} 1-0


[Site "https://www.chess.com"]

[Event "Titled Tuesday Blitz May 03 Early 2022"]
[White "Quirke, Jeffrey"]
[Black "Araujo Filho, Luiz Antonio Coel"]
[WhiteFideId "2013029"]
[BlackFideId "2130661"]
[WhiteElo "2072"]
[BlackElo "2297"]
[Result "0-1"]
[Round "05"]
[TimeControl "180+1"]
[Date "2022.05.03"]
[WhiteClock "0:00:04"]
[BlackClock "0:00:11"]

1. d4 {[%clk 0:03:00]}  f5 {[%clk 0:02:59]} 2. c4 {[%clk 0:03:00]}  Nf6 {[%clk 0:02:59]} 3. Nc3 {[%clk 0:02:59]}  g6 {[%clk 0:02:59]} 4. h4 {[%clk 0:02:58]}  Bg7 {[%clk 0:02:58]} 5. h5 {[%clk 0:02:58]}  c6 {[%clk 0:02:56]} 6. hxg6 {[%clk 0:02:46]}  hxg6 {[%clk 0:02:55]} 7. Rxh8+ {[%clk 0:02:46]}  Bxh8 {[%clk 0:02:56]} 8. e4 {[%clk 0:02:46]}  fxe4 {[%clk 0:02:51]} 9. d5 {[%clk 0:02:18]}  d6 {[%clk 0:02:20]} 10. Bg5 {[%clk 0:02:13]}  Nbd7 {[%clk 0:02:14]} 11. Qc2 {[%clk 0:02:09]}  Ne5 {[%clk 0:02:02]} 12. f3 {[%clk 0:01:58]}  exf3 {[%clk 0:01:53]} 13. Nxf3 {[%clk 0:01:57]}  Bf5 {[%clk 0:01:51]} 14. Qb3 {[%clk 0:01:54]}  Qb6 {[%clk 0:01:44]} 15. Nxe5 {[%clk 0:01:47]}  dxe5 {[%clk 0:01:45]} 16. O-O-O {[%clk 0:01:36]}  Qxb3 {[%clk 0:01:30]} 17. axb3 {[%clk 0:01:35]}  cxd5 {[%clk 0:01:31]} 18. Nxd5 {[%clk 0:01:31]}  Nxd5 {[%clk 0:01:31]} 19. Rxd5 {[%clk 0:01:29]}  Bf6 {[%clk 0:01:31]} 20. Be3 {[%clk 0:01:24]}  a6 {[%clk 0:01:26]} 21. Be2 {[%clk 0:01:23]}  Be4 {[%clk 0:01:24]} 22. Rd2 {[%clk 0:01:17]}  Bxg2 {[%clk 0:01:22]} 23. Bg4 {[%clk 0:01:17]}  Be4 {[%clk 0:01:19]} 24. Be6 {[%clk 0:00:55]}  Bf5 {[%clk 0:01:16]} 25. Bd5 {[%clk 0:00:55]}  Rb8 {[%clk 0:01:02]} 26. Rh2 {[%clk 0:00:49]}  e6 {[%clk 0:00:46]} 27. Bf3 {[%clk 0:00:47]}  b5 {[%clk 0:00:37]} 28. c5 {[%clk 0:00:44]}  e4 {[%clk 0:00:35]} 29. Be2 {[%clk 0:00:42]}  g5 {[%clk 0:00:29]} 30. b4 {[%clk 0:00:30]}  Kf7 {[%clk 0:00:28]} 31. Bd1 {[%clk 0:00:18]}  Kg6 {[%clk 0:00:25]} 32. Bb3 {[%clk 0:00:17]}  g4 {[%clk 0:00:22]} 33. Rd2 {[%clk 0:00:17]}  Be5 {[%clk 0:00:21]} 34. Rd7 {[%clk 0:00:14]}  g3 {[%clk 0:00:20]} 35. Re7 {[%clk 0:00:12]}  g2 {[%clk 0:00:18]} 36. Bxe6 {[%clk 0:00:10]}  Bxe6 {[%clk 0:00:18]} 37. Rxe6+ {[%clk 0:00:09]}  Kf5 {[%clk 0:00:19]} 38. Rxa6 {[%clk 0:00:04]}  Bf4 {[%clk 0:00:11]} 0-1


[Site "https://www.chess.com"]

[Event "Titled Tuesday Blitz May 03 Early 2022"]
[White "Rasulov, Vugar"]
[Black "Vysochin, Spartak"]
[WhiteFideId "13402390"]
[BlackFideId "14103516"]
[WhiteElo "2560"]
[BlackElo "2385"]
[Result "1-0"]
[Round "05"]
[TimeControl "180+1"]
[Date "2022.05.03"]
[WhiteClock "0:00:06"]
[BlackClock "0:00:02"]

1. d4 {[%clk 0:03:00]}  d5 {[%clk 0:02:58]} 2. c4 {[%clk 0:03:01]}  c6 {[%clk 0:02:58]} 3. Nf3 {[%clk 0:03:01]}  Nf6 {[%clk 0:02:59]} 4. Nc3 {[%clk 0:03:01]}  Qb6 {[%clk 0:02:59]} 5. g3 {[%clk 0:02:55]}  Bf5 {[%clk 0:02:52]} 6. Bg2 {[%clk 0:02:55]}  e6 {[%clk 0:02:52]} 7. O-O {[%clk 0:02:55]}  Nbd7 {[%clk 0:02:50]} 8. Nh4 {[%clk 0:02:49]}  Bg6 {[%clk 0:02:42]} 9. c5 {[%clk 0:02:47]}  Qd8 {[%clk 0:02:32]} 10. Nxg6 {[%clk 0:02:46]}  hxg6 {[%clk 0:02:32]} 11. b4 {[%clk 0:02:47]}  Be7 {[%clk 0:02:30]} 12. Bf4 {[%clk 0:02:44]}  Nh5 {[%clk 0:02:11]} 13. Qc2 {[%clk 0:02:32]}  Nxf4 {[%clk 0:02:05]} 14. gxf4 {[%clk 0:02:33]}  Nf6 {[%clk 0:01:53]} 15. e3 {[%clk 0:02:32]}  Ng4 {[%clk 0:01:51]} 16. h3 {[%clk 0:02:28]}  Nh6 {[%clk 0:01:51]} 17. b5 {[%clk 0:02:25]}  Nf5 {[%clk 0:01:49]} 18. Rfb1 {[%clk 0:02:25]}  g5 {[%clk 0:01:45]} 19. fxg5 {[%clk 0:02:19]}  Bxg5 {[%clk 0:01:45]} 20. bxc6 {[%clk 0:02:13]}  bxc6 {[%clk 0:01:45]} 21. Qa4 {[%clk 0:02:14]}  Rc8 {[%clk 0:01:29]} 22. Nd1 {[%clk 0:01:58]}  Rc7 {[%clk 0:01:21]} 23. Qa5 {[%clk 0:01:49]}  O-O {[%clk 0:01:18]} 24. Rb3 {[%clk 0:01:49]}  Qe7 {[%clk 0:01:17]} 25. Rab1 {[%clk 0:01:49]}  e5 {[%clk 0:01:17]} 26. dxe5 {[%clk 0:01:46]}  d4 {[%clk 0:00:53]} 27. e4 {[%clk 0:01:22]}  Nh4 {[%clk 0:00:51]} 28. Nb2 {[%clk 0:01:22]}  Bf4 {[%clk 0:00:36]} 29. Nd3 {[%clk 0:01:15]}  Bxe5 {[%clk 0:00:36]} 30. f4 {[%clk 0:01:08]}  Nxg2 {[%clk 0:00:28]} 31. Kxg2 {[%clk 0:01:07]}  Bxf4 {[%clk 0:00:29]} 32. Nxf4 {[%clk 0:01:07]}  Qxe4+ {[%clk 0:00:29]} 33. Kg3 {[%clk 0:01:07]}  Re7 {[%clk 0:00:26]} 34. Qd2 {[%clk 0:00:54]}  Re5 {[%clk 0:00:25]} 35. Rf1 {[%clk 0:00:43]}  Rfe8 {[%clk 0:00:20]} 36. Rbf3 {[%clk 0:00:41]}  Rg5+ {[%clk 0:00:16]} 37. Kh2 {[%clk 0:00:42]}  Rxc5 {[%clk 0:00:15]} 38. Ng2 {[%clk 0:00:32]}  Rc2 {[%clk 0:00:15]} 39. Qg5 {[%clk 0:00:31]}  f6 {[%clk 0:00:12]} 40. Qg3 {[%clk 0:00:26]}  c5 {[%clk 0:00:12]} 41. R1f2 {[%clk 0:00:18]}  Rxf2 {[%clk 0:00:11]} 42. Rxf2 {[%clk 0:00:19]}  c4 {[%clk 0:00:11]} 43. Rxf6 {[%clk 0:00:18]}  c3 {[%clk 0:00:08]} 44. Rf4 {[%clk 0:00:19]}  Qe5 {[%clk 0:00:08]} 45. h4 {[%clk 0:00:10]}  c2 {[%clk 0:00:08]} 46. Qb3+ {[%clk 0:00:10]}  Kh8 {[%clk 0:00:05]} 47. Qxc2 {[%clk 0:00:11]}  Rf8 {[%clk 0:00:05]} 48. Qf2 {[%clk 0:00:11]}  d3 {[%clk 0:00:05]} 49. Qg3 {[%clk 0:00:11]}  Rxf4 {[%clk 0:00:05]} 50. Nxf4 {[%clk 0:00:12]}  Kg8 {[%clk 0:00:05]} 51. Nxd3 {[%clk 0:00:11]}  Qe2+ {[%clk 0:00:05]} 52. Nf2 {[%clk 0:00:11]}  Qxa2 {[%clk 0:00:04]} 53. Kg2 {[%clk 0:00:11]}  Kh7 {[%clk 0:00:05]} 54. Qd3+ {[%clk 0:00:11]}  Kh8 {[%clk 0:00:04]} 55. Kg3 {[%clk 0:00:12]}  Qf7 {[%clk 0:00:04]} 56. Ng4 {[%clk 0:00:11]}  Qc7+ {[%clk 0:00:04]} 57. Kh3 {[%clk 0:00:12]}  Qc8 {[%clk 0:00:04]} 58. h5 {[%clk 0:00:12]}  a5 {[%clk 0:00:03]} 59. Kh4 {[%clk 0:00:11]}  Qe6 {[%clk 0:00:02]} 60. Qd8+ {[%clk 0:00:07]}  Kh7 {[%clk 0:00:02]} 61. Qd3+ {[%clk 0:00:08]}  Kh8 {[%clk 0:00:02]} 62. h6 {[%clk 0:00:05]}  Qe7+ {[%clk 0:00:01]} 63. Kh5 {[%clk 0:00:05]}  gxh6 {[%clk 0:00:02]} 64. Qd4+ {[%clk 0:00:04]}  Kh7 {[%clk 0:00:02]} 65. Nf6+ {[%clk 0:00:04]}  Kh8 {[%clk 0:00:02]} 66. Ne4+ {[%clk 0:00:03]}  Kh7 {[%clk 0:00:03]} 67. Nf6+ {[%clk 0:00:03]}  Kh8 {[%clk 0:00:03]} 68. Ng4+ {[%clk 0:00:02]}  Kh7 {[%clk 0:00:04]} 69. Qd3+ {[%clk 0:00:03]}  Kh8 {[%clk 0:00:04]} 70. Nxh6 {[%clk 0:00:03]}  Qe5+ {[%clk 0:00:04]} 71. Kg6 {[%clk 0:00:03]}  Qe6+ {[%clk 0:00:04]} 72. Kg5 {[%clk 0:00:04]}  Qe5+ {[%clk 0:00:04]} 73. Nf5 {[%clk 0:00:05]}  a4 {[%clk 0:00:02]} 74. Qd8+ {[%clk 0:00:05]}  Kh7 {[%clk 0:00:02]} 75. Qd7+ {[%clk 0:00:06]}  Kh8 {[%clk 0:00:02]} 76. Qxa4 {[%clk 0:00:06]} 1-0


[Site "https://www.chess.com"]

[Event "Titled Tuesday Blitz May 03 Early 2022"]
[White "Ratnakaran, K."]
[Black "Pinero Rodriguez, Carlos Jose"]
[WhiteFideId "5005507"]
[BlackFideId "3901726"]
[WhiteElo "2407"]
[BlackElo "2053"]
[Result "1-0"]
[Round "05"]
[TimeControl "180+1"]
[Date "2022.05.03"]
[WhiteClock "0:01:34"]
[BlackClock "0:00:27"]

1. e4 {[%clk 0:03:00]}  c5 {[%clk 0:02:59]} 2. Nf3 {[%clk 0:03:00]}  e6 {[%clk 0:03:00]} 3. d4 {[%clk 0:03:00]}  cxd4 {[%clk 0:03:01]} 4. Nxd4 {[%clk 0:03:01]}  a6 {[%clk 0:03:01]} 5. c4 {[%clk 0:03:01]}  Qc7 {[%clk 0:03:01]} 6. Bd3 {[%clk 0:03:01]}  Nf6 {[%clk 0:02:52]} 7. O-O {[%clk 0:03:00]}  h5 {[%clk 0:02:51]} 8. h3 {[%clk 0:02:59]}  Bc5 {[%clk 0:02:49]} 9. Nf3 {[%clk 0:02:57]}  Nc6 {[%clk 0:02:48]} 10. a3 {[%clk 0:02:54]}  Ng4 {[%clk 0:02:47]} 11. b4 {[%clk 0:02:26]}  Nd4 {[%clk 0:02:46]} 12. Nbd2 {[%clk 0:02:26]}  Nxf3+ {[%clk 0:02:36]} 13. Nxf3 {[%clk 0:02:25]}  Bd4 {[%clk 0:02:07]} 14. Ra2 {[%clk 0:02:25]}  Bf6 {[%clk 0:01:57]} 15. hxg4 {[%clk 0:02:14]}  hxg4 {[%clk 0:01:56]} 16. g3 {[%clk 0:02:14]}  gxf3 {[%clk 0:01:56]} 17. Qxf3 {[%clk 0:02:14]}  b6 {[%clk 0:01:47]} 18. e5 {[%clk 0:02:09]}  Bb7 {[%clk 0:01:46]} 19. Be4 {[%clk 0:02:09]}  Bxe4 {[%clk 0:01:35]} 20. Qxe4 {[%clk 0:02:09]}  d5 {[%clk 0:01:18]} 21. exd6 {[%clk 0:01:57]}  Qd8 {[%clk 0:01:08]} 22. Qc6+ {[%clk 0:01:56]}  Kf8 {[%clk 0:01:09]} 23. Be3 {[%clk 0:01:47]}  Rc8 {[%clk 0:01:04]} 24. Qxb6 {[%clk 0:01:47]}  Rxc4 {[%clk 0:00:56]} 25. Qxd8+ {[%clk 0:01:46]}  Bxd8 {[%clk 0:00:56]} 26. Rc1 {[%clk 0:01:44]}  Rxc1+ {[%clk 0:00:37]} 27. Bxc1 {[%clk 0:01:43]}  Ke8 {[%clk 0:00:38]} 28. Bb2 {[%clk 0:01:43]}  Kd7 {[%clk 0:00:39]} 29. Bxg7 {[%clk 0:01:43]}  Rg8 {[%clk 0:00:36]} 30. Be5 {[%clk 0:01:41]}  f6 {[%clk 0:00:36]} 31. Bf4 {[%clk 0:01:41]}  e5 {[%clk 0:00:36]} 32. Be3 {[%clk 0:01:42]}  Kxd6 {[%clk 0:00:36]} 33. Rd2+ {[%clk 0:01:41]}  Kc6 {[%clk 0:00:36]} 34. a4 {[%clk 0:01:40]}  Be7 {[%clk 0:00:34]} 35. b5+ {[%clk 0:01:38]}  axb5 {[%clk 0:00:34]} 36. Rc2+ {[%clk 0:01:38]}  Kd5 {[%clk 0:00:29]} 37. axb5 {[%clk 0:01:38]}  Rb8 {[%clk 0:00:29]} 38. b6 {[%clk 0:01:39]}  Bd6 {[%clk 0:00:26]} 39. Kg2 {[%clk 0:01:38]}  f5 {[%clk 0:00:25]} 40. Kf3 {[%clk 0:01:38]}  f4 {[%clk 0:00:24]} 41. gxf4 {[%clk 0:01:36]}  exf4 {[%clk 0:00:24]} 42. Rd2+ {[%clk 0:01:36]}  Ke6 {[%clk 0:00:22]} 43. Rxd6+ {[%clk 0:01:36]}  Kxd6 {[%clk 0:00:20]} 44. Bxf4+ {[%clk 0:01:37]}  Kc6 {[%clk 0:00:21]} 45. Bxb8 {[%clk 0:01:37]}  Kxb6 {[%clk 0:00:21]} 46. Ke4 {[%clk 0:01:36]}  Kc6 {[%clk 0:00:22]} 47. Ke5 {[%clk 0:01:36]}  Kd7 {[%clk 0:00:23]} 48. Bd6 {[%clk 0:01:32]}  Ke8 {[%clk 0:00:23]} 49. Ke6 {[%clk 0:01:33]}  Kd8 {[%clk 0:00:23]} 50. f4 {[%clk 0:01:33]}  Ke8 {[%clk 0:00:23]} 51. f5 {[%clk 0:01:34]}  Kd8 {[%clk 0:00:24]} 52. f6 {[%clk 0:01:34]}  Kc8 {[%clk 0:00:25]} 53. f7 {[%clk 0:01:34]}  Kb7 {[%clk 0:00:26]} 54. f8=Q {[%clk 0:01:34]}  Kc6 {[%clk 0:00:27]} 55. Qc8+ {[%clk 0:01:33]}  Kb5 {[%clk 0:00:28]} 56. Qc5+ {[%clk 0:01:33]}  Ka4 {[%clk 0:00:27]} 57. Qb4# {[%clk 0:01:34]} 1-0


[Site "https://www.chess.com"]